Cogmind - Beta 16 @@@ ROGUE MODE // 2025.10.31 @ 17:47:49 Player: jumpy Result: Destroyed by P-70 Sage with Tesla Rifle Performance ------------- Evolutions (6) 3000 Regions Visited (14) 2800 Robots Destroyed (86) 430 Value Destroyed (3370) 3370 Prototype IDs (17) 340 Alien Tech Used (0) 0 Bonus (1725) 1725 TOTAL SCORE: 11665 Bonus ------- High Alert Combat Kills 122 Follower Combat Kills 800 Met Warlord at Base 500 MAIN.C Attacked Warlord 500 Warlord Defense Kills 494 Friendly Fire -691 Cogmind --------- Core Integrity 0/1150 Matter 250/300 Energy 93/100 System Corruption 10% Temperature Cool (0) Movement Core (50) Location -4/Factory Parts ------- > --- POWER (2) -------- (None) > --- PROPULSION (7) --- (None) > --- UTILITY (7) ------ Advanced Terrain Scan Processor Experimental Core Analyzer > --- WEAPON (3) ------- (None) > --- INVENTORY (5) ---- Vortex Chain Reactor Enhanced Gauss Cannon Plasma Cutter Peak State ------------ > --- POWER ------------ Vortex Chain Reactor > --- PROPULSION ------- Improved Treads Advanced Treads Medium Treads Armored Medium Treads > --- UTILITY ---------- Improved Cooling System Large Storage Unit Advanced Targeting Computer Core Analyzer Experimental Armor Integrity Analyzer Layered Light Armor Plating Improved Shield Generator > --- WEAPON ----------- Cooled Particle Cannon Cooled Particle Cannon Plasma Cutter > --- INVENTORY -------- Deuterium Engine Light Angular Momentum Engine Light Fission Core Advanced Heat Sink Improved Terrain Scanner Advanced Terrain Scan Processor Improved Targeting Computer Transmission Jammer Transmission Jammer Experimental Phase Shifter Cooled Particle Cannon Cooled Particle Cannon Cooled Particle Cannon Grenade Launcher [Rating: 83] Favorites ----------- Power Deuterium Engine Engine Deuterium Engine Power Core Light Fission Core Reactor Antimatter Reactor Propulsion Light Treads Treads Light Treads Leg Aluminum Leg Wheel Compact Wheel Hover Unit Antigrav System Flight Unit VTOL Module Utility Large Storage Unit Device Seismic Detector Storage Large Storage Unit Processor Advanced Targeting Computer Hackware Advanced Hacking Suite Protection Layered Light Armor Plating Weapon Field Laser Energy Gun Field Laser Energy Cannon Cooled Particle Cannon Ballistic Gun Assault Rifle Ballistic Cannon Heavy Flak Cannon Launcher Grenade Launcher Special Weapon Plasma Cutter Slashing Weapon Chainsword Build | -11 -10 -9 -9 -8 -7 -7 -7 -6 -5 -5 -5 -5 -4 -4 ------- Run | Yrd Mat Mat Min Mat Fac Was Fac Fac Fac Upp Upp War Pro Fac Slots Evolved 12 | . . 2 . 2 2 . . 2 2 . . . . 2 Power 1 | . . . . . . . . . 1 . . . . . Propulsion 5 | . . . . . 1 . . 1 1 . . . . 2 Utility 5 | . . 1 . 2 1 . . 1 . . . . . . Weapon 1 | . . 1 . . . . . . . . . . . . Parts Attached 107 | 10 1 8 1 3 5 2 7 13 4 4 3 24 . 22 Power 16 | 1 . 2 . . . . 2 1 2 1 . 6 . 1 Engine 9 | 1 . 2 . . . . 2 1 1 1 . 1 . . Core 3 | . . . . . . . . . 1 . . 1 . 1 Reactor 4 | . . . . . . . . . . . . 4 . . Propulsion 23 | 4 . 1 1 . 2 1 . 2 1 2 . 1 . 8 Treads 12 | 2 . 1 1 . 2 1 . 2 1 2 . . . . Leg 3 | 2 . . . . . . . . . . . . . 1 Wheel 2 | . . . . . . . . . . . . 1 . 1 Hover 2 | . . . . . . . . . . . . . . 2 Flight 4 | . . . . . . . . . . . . . . 4 Utility 36 | 2 . 2 . 1 3 1 2 5 1 1 2 12 . 4 Device 15 | 1 . 1 . . 2 . 1 1 . 1 1 6 . 1 Storage 2 | 1 . 1 . . . . . . . . . . . . Processor 10 | . . . . . . . . 2 1 . . 5 . 2 Hackware 2 | . . . . . . 1 . . . . . 1 . . Protection 7 | . . . . 1 1 . 1 2 . . 1 . . 1 Artifact . | . . . . . . . . . . . . . . . Weapon 32 | 3 1 3 . 2 . . 3 5 . . 1 5 . 9 Energy Gun 12 | 1 1 3 . 1 . . 3 1 . . . . . 2 Energy Cannon 9 | . . . . . . . . 4 . . 1 3 . 1 Ballistic Gun 3 | 2 . . . . . . . . . . . . . 1 Ballistic Cannon 2 | . . . . . . . . . . . . 1 . 1 Launcher 1 | . . . . 1 . . . . . . . . . . Special Weapon 1 | . . . . . . . . . . . . 1 . . Impact Weapon . | . . . . . . . . . . . . . . . Slashing Weapon 4 | . . . . . . . . . . . . . . 4 Piercing Weapon . | . . . . . . . . . . . . . . . Special Melee Weapon . | . . . . . . . . . . . . . . . Unidentified Prototypes 15 | . . 1 . 1 . . 1 1 . . . 10 . 1 Parts Lost 48 | . 2 . 1 . . . 1 3 . 3 2 20 . 16 Power 7 | . . . . . . . 1 . . 1 . 4 . 1 Propulsion 14 | . 1 . 1 . . . . 1 . 2 . 5 . 4 Utility 17 | . . . . . . . . 2 . . 1 7 . 7 Weapon 10 | . 1 . . . . . . . . . 1 4 . 4 Highest Loss Streak 12 | . 2 . 1 . . . 1 3 . 2 1 7 . 12 To Critical Strikes 1 | . . . . . . . . . . . . 1 . . Average Backups 11 | 3 6 8 13 13 13 15 14 14 14 13 11 13 4 3 Power 1 | . 1 2 2 2 2 2 1 1 2 2 1 1 1 1 Propulsion 2 | 1 2 2 6 6 5 5 4 2 1 1 . . . . Utility 4 | . 2 2 2 2 3 5 5 5 4 5 5 6 1 . Weapon 2 | . 1 1 2 3 2 2 2 3 4 4 3 4 1 . Tool/Special . | . . . . . . . . . . . . . . . Unused Backups 13 | . . 2 . . 1 . 1 5 1 . . 2 . 1 Power 2 | . . 2 . . . . . . . . . . . . Propulsion 3 | . . . . . 1 . 1 . 1 . . . . . Utility 2 | . . . . . . . . . . . . 2 . . Weapon 6 | . . . . . . . . 5 . . . . . 1 Tool/Special . | . . . . . . . . . . . . . . . Average Slot Usage (%) 85 | . 96 84 100 86 91 93 91 90 93 93 93 88 29 42 Engine 6 | . 14 11 11 9 7 7 6 6 6 6 11 5 . . Core 1 | . . . . . . . . . 3 3 . 3 . 2 Treads 17 | . 25 14 22 18 23 21 15 19 22 22 23 18 . . Device 15 | . 14 14 22 18 22 23 23 20 16 11 11 10 5 2 Storage 6 | . 14 11 11 9 7 7 7 6 5 5 5 4 . . Processor 8 | . . . . . . . . 6 11 17 17 17 17 19 Hackware 1 | . . . . . . 2 7 4 . . . . 5 1 Protection 4 | . . . . 5 7 7 7 5 5 5 4 4 . 1 Energy Gun 12 | . 16 32 33 27 23 23 22 13 . . . . . . Energy Cannon 6 | . . . . . . . . 6 17 16 16 14 . 1 Peak Build Rating 83 | 7 7 19 19 22 32 47 55 64 75 75 65 83 36 81 Average Rating 47 | 5 6 16 18 20 28 33 49 60 71 71 64 75 36 51 On Entrance 36 | . 7 6 19 19 22 31 47 55 62 75 65 64 36 36 Avg Prop Armor Cover (%) 9 | . . . . . . . . . . . . 9 . . Naked Turns . | . . . . . . . . . . . . . . . Heaviest Build 86 | 15 15 40 40 43 45 45 52 66 75 74 73 86 . 27 Greatest Support 143 | 40 40 40 40 40 63 93 93 116 143 143 100 100 3 25 Greatest Overweight (x) 18 | . . 1 . 1 . . . . . . . 18 . 2 Average Overweight (x) . | . . . . . . . . . . . . . . . Largest Inventory Capacity 15 | 8 8 15 15 15 15 15 15 15 15 15 15 15 5 5 Average Capacity 13 | 7 8 14 15 15 15 15 15 15 15 15 15 14 5 5 Most Carried 15 | 6 7 13 14 13 15 15 15 15 15 15 13 15 5 5 Average Carried 12 | 3 6 8 13 13 14 15 14 14 14 13 11 14 5 4 Final Capacity 15 | 8 8 15 15 15 15 15 15 15 15 15 15 5 5 5 Final Carried 15 | 6 7 13 13 13 15 15 15 14 15 12 11 5 5 4 Class Distribution -------------------- 36% | Gunner 23% | Scavenger-Tank 15% | Tank 13% | Mutant 3% | Scavenger-Gunner Dominant Class ---------------- Mutant | -10/Materials Gunner | -9/Materials Gunner | -9/Mines Scavenger-Tank | -8/Materials Scavenger-Tank | -7/Factory Scavenger-Tank | -7/Waste Tank | -7/Factory Scavenger-Tank | -6/Factory Scavenger-Tank | -5/Factory Gunner | -5/Upper Caves Gunner | -5/Upper Caves Gunner | -5/Warlord Mutant | -4/Proximity Caves Scavenger-Gladiator | -4/Factory Resources | -11 -10 -9 -9 -8 -7 -7 -7 -6 -5 -5 -5 -5 -4 -4 ----------- Run | Yrd Mat Mat Min Mat Fac Was Fac Fac Fac Upp Upp War Pro Fac Matter Collected 1630 | 391 63 100 10 60 40 30 90 120 40 93 43 302 . 248 Remotely . | . . . . . . . . . . . . . . . Salvage Created 3694 | 244 264 185 47 139 96 . 188 473 205 545 529 249 . 530 Parts 164 | 13 14 11 4 6 3 . 6 12 10 16 20 15 . 34 Haulers Intercepted 4 | . . 2 . . . . 1 1 . . . . . . Recyclers Shooed 1 | . 1 . . . . . . . . . . . . . Parts Field Recycled . | . . . . . . . . . . . . . . . Retrieved Matter . | . . . . . . . . . . . . . . . Parts Self-Destructed 41 | . . . . . . . . . . 20 21 . . . Prevented 2 | . . . . . . . . . . 1 . . 1 . Parts Restored . | . . . . . . . . . . . . . . . Kills | -11 -10 -9 -9 -8 -7 -7 -7 -6 -5 -5 -5 -5 -4 -4 ------- Run | Yrd Mat Mat Min Mat Fac Was Fac Fac Fac Upp Upp War Pro Fac Combat Hostiles Destroyed 66 | . 8 2 3 3 2 . 2 7 2 13 8 4 . 12 Melee 7 | . . . . . . . . . . . . . . 7 Guns 23 | . 8 2 3 2 2 . 2 3 . . . . . 1 Cannons 29 | . . . . . . . . 3 2 9 7 4 . 4 AOE 4 | . . . . . . . . . . 4 . . . . Classes Destroyed 15 | 3 3 2 . 1 . . 1 3 . 1 . 1 . . Worker 1 | 1 . . . . . . . . . . . . . . Builder 2 | . . . . . . . . 1 . . . . . 1 Tunneler 7 | 7 . . . . . . . . . . . . . . Hauler 4 | . . 2 . . . . 1 1 . . . . . . Recycler 1 | 1 . . . . . . . . . . . . . . Watcher 3 | . 1 . . . . . . . 2 . . . . . Swarmer 16 | . 3 . 3 . . . . . . 4 . . . 6 Grunt 30 | . 5 1 . 2 2 . 1 4 . 5 7 1 . 2 Duelist 1 | . . . . . . . . . . 1 . . . . Protector 1 | . . . . . . . . . . . . 1 . . Sentry 6 | . . 1 . . . . . . 2 1 . . . 2 Hunter 3 | . . . . 1 . . . 1 . . 1 . . . Programmer 7 | . . . . . . . . 1 . 2 . 2 . 2 Heavy 1 | . . . . . . . 1 . . . . . . . Wasp 1 | . . . . . . . 1 . . . . . . . Thug 1 | . . . . . . . 1 . . . . . . . Martyr 1 | . . . . . . . . 1 . . . . . . Best Kill Streak 9 | 4 3 1 3 1 1 . 1 4 1 9 4 2 . 4 Combat Bots Only 9 | . 3 1 3 1 1 . 1 3 1 9 4 2 . 4 Max Kills in Single Turn 2 | 1 1 1 2 1 1 . 1 1 1 2 1 1 . 1 Gunslinging 1 | . . . 1 . . . . . . . . . . . Exploded 2 | . . . . . . . . . . 2 . . . . Melee 1 | . . . . . . . . . . . . . . 1 Uniques/NPCs Destroyed . | . . . . . . . . . . . . . . . Combat | -11 -10 -9 -9 -8 -7 -7 -7 -6 -5 -5 -5 -5 -4 -4 -------- Run | Yrd Mat Mat Min Mat Fac Was Fac Fac Fac Upp Upp War Pro Fac Hostile Shots Fired 638 | . 70 3 17 26 6 . 13 57 10 51 28 184 9 164 Missed 176 | . 11 . 4 10 2 . 3 8 4 15 8 62 2 47 Hits 462 | . 59 3 13 16 4 . 10 49 6 36 20 122 7 117 Melee 3 | . . . . . . . . . . 2 . 1 . . Projectile 459 | . 59 3 13 16 4 . 10 49 6 34 20 121 7 117 AOE 3 | . . . . . . . 3 . . . . . . . Critical Strikes 13 | . . . . . . . . 3 . . 1 6 . 3 Part Disruptions 2 | . . . . . . . . . . . . 2 . . Damage Taken 9155 | . 572 41 106 264 61 . 225 1018 162 726 277 3307 77 2319 Core 2378 | . 106 . . 55 16 . 47 86 24 37 15 751 77 1164 Absorbed by Shields 391 | . . . . . . . . . . . 99 292 . . Regen/Repaired (Parts) 54 | . . . . . . . . . . . . 54 . . Core Remaining (%) 76 | 100 57 . 100 90 . . 91 89 . . . . 9 . Volleys Fired 240 | 29 39 4 4 11 6 1 17 21 8 19 16 25 . 40 Largest 3 | 2 2 3 3 3 3 3 3 3 3 3 3 3 . 1 Hottest 270 | 70 90 189 189 189 189 189 205 219 210 90 210 270 . 90 Shots Fired 539 | 58 70 12 12 31 18 3 49 63 24 53 46 61 . 39 Gun 286 | 58 70 12 12 30 18 3 48 28 . . . . . 7 Cannon 249 | . . . . . . . . 35 24 51 46 61 . 32 Launcher 4 | . . . . 1 . . 1 . . 2 . . . . Special . | . . . . . . . . . . . . . . . Kinetic 80 | 33 28 . . . . . . . . . . 7 . 12 Thermal 455 | 25 42 12 12 30 18 3 48 63 24 51 46 54 . 27 Explosive 4 | . . . . 1 . . 1 . . 2 . . . . Electromagnetic . | . . . . . . . . . . . . . . . Robot Hit Streak 15 | 7 15 5 3 6 5 1 6 10 13 12 13 15 . 4 Robot Miss Streak 5 | 2 5 3 3 2 2 2 5 2 1 4 4 3 . 2 Penetration Max . | . . . . . . . . . . . . . . . Secondary Targets 3 | . 1 . 1 . . . . 1 . . . . . . Max Gunslinging Chain 1 | . 1 . 1 . . . . 1 . . . . . . Shots Hit Robots 349 | 33 43 5 7 20 9 1 22 44 16 30 29 45 . 45 Core Hits 167 | 10 16 5 3 6 4 1 9 19 7 22 12 31 . 22 Critical Kills 1 | . . . . . . . . 1 . . . . . . Critical Parts Destroyed 1 | 1 . . . . . . . . . . . . . . Critical Strikes 15 | 4 3 1 . . . . . 2 . . . . . 5 Burn 8 | 3 3 1 . . . . . 1 . . . . . . Meltdown 1 | . . . . . . . . 1 . . . . . . Destroy 1 | 1 . . . . . . . . . . . . . . Sever 5 | . . . . . . . . . . . . . . 5 Melee Attacks 45 | . . . . . . . . . . . . . . 45 Impact . | . . . . . . . . . . . . . . . Slashing 45 | . . . . . . . . . . . . . . 45 Piercing . | . . . . . . . . . . . . . . . Sneak Attacks . | . . . . . . . . . . . . . . . Combat Hostiles . | . . . . . . . . . . . . . . . Follow-up Attacks 5 | . . . . . . . . . . . . . . 5 Damage Inflicted 9665 | 399 564 100 135 340 153 52 623 1127 512 1319 1165 1577 . 1599 Guns 2721 | 399 561 100 135 340 153 52 427 497 . . . . . 57 Cannons 5099 | . . . . . . . . 614 512 878 1165 1573 . 357 Explosions 607 | . . . . . . . 169 . . 438 . . . . Melee 1185 | . . . . . . . . . . . . . . 1185 Ramming 53 | . 3 . . . . . 27 16 . 3 . 4 . . Kinetic 830 | 211 176 . . . . . . . . . . 256 . 187 Thermal 6990 | 188 385 100 135 340 153 52 427 1111 512 878 1165 1317 . 227 Explosive 607 | . . . . . . . 169 . . 438 . . . . Electromagnetic . | . . . . . . . . . . . . . . . Impact . | . . . . . . . . . . . . . . . Slashing 1185 | . . . . . . . . . . . . . . 1185 Piercing . | . . . . . . . . . . . . . . . Highest Corruption 20 | . . . . . . . . . . 1 1 20 20 10 Average Corruption 4 | . . . . . . . . . . 1 1 6 20 3 Corruption Purged . | . . . . . . . . . . . . . . . Corruption Blocked . | . . . . . . . . . . . . . . . Effects 41 | . . . . . . . . . . 2 10 16 9 4 Message Errors 9 | . . . . . . . . . . . 2 3 3 1 Matter Fused 7 | . . . . . . . . . . . 2 4 . 1 Heat Flow Errors 3 | . . . . . . . . . . 1 1 1 . . Energy Discharges 7 | . . . . . . . . . . 1 . 2 4 . Parts Fused 1 | . . . . . . . . . . . 1 . . . Data Loss (minor) 3 | . . . . . . . . . . . 1 1 1 . Data Loss (major) 2 | . . . . . . . . . . . 1 1 . . Misfires 5 | . . . . . . . . . . . 2 3 . . Alerts 1 | . . . . . . . . . . . . . . 1 Misdirections 2 | . . . . . . . . . . . . 1 1 . Weapon Failures 1 | . . . . . . . . . . . . . . 1 Overload Shots 22 | . . . . . . . . . 4 . 18 . . . Overflow Damage 131 | . . . . . . . . 18 . 60 . 38 . 15 Projectiles 101 | . . . . . . . . 18 . 34 . 38 . 11 Explosions 26 | . . . . . . . . . . 26 . . . . Melee 4 | . . . . . . . . . . . . . . 4 Knockbacks 7 | . . . . . . . . . . . . 5 . 2 Impact . | . . . . . . . . . . . . . . . Kinetic 7 | . . . . . . . . . . . . 5 . 2 Secondary . | . . . . . . . . . . . . . . . Self-Inflicted Damage 40 | . . . . . . . 40 . . . . . . . Shots 1 | . . . . . . . 1 . . . . . . . Rammed 10 | . 3 . . . . . 4 1 . 1 . 1 . . Targets Rammed 10 | . 3 . . . . . 4 1 . 1 . 1 . . Kicked . | . . . . . . . . . . . . . . . Crushed . | . . . . . . . . . . . . . . . Highest Temperature 328 | 45 234 123 279 328 144 90 100 276 192 129 187 207 . 12 Average Temperature 65 | 15 69 58 121 147 66 53 40 85 102 55 85 70 . 4 Received Heat Transfer 1160 | . 222 15 . 90 36 . 18 201 18 171 122 99 . 168 Siege Activations . | . . . . . . . . . . . . . . . Martial Activations . | . . . . . . . . . . . . . . . Shielding Activations . | . . . . . . . . . . . . . . . Robots Disrupted . | . . . . . . . . . . . . . . . Combat Hostiles . | . . . . . . . . . . . . . . . Robots Corrupted . | . . . . . . . . . . . . . . . Combat Hostiles . | . . . . . . . . . . . . . . . Parts Fried . | . . . . . . . . . . . . . . . Impact Corruptions . | . . . . . . . . . . . . . . . Robots Melted 3 | . . . . 1 . . . 1 . . 1 . . . Combat Hostiles 3 | . . . . 1 . . . 1 . . 1 . . . Parts Melted 27 | 3 2 1 . 5 . . 1 7 1 5 1 1 . . Heat Transferred 10933 | 777 1357 296 296 740 333 111 888 1776 631 1110 1303 1315 . . Parts Sabotaged 2 | . . . . . . . . . . . . 2 . . Parts Stolen . | . . . . . . . . . . . . . . . Parts Stripped . | . . . . . . . . . . . . . . . Power Chain Reactions . | . . . . . . . . . . . . . . . Alert | -11 -10 -9 -9 -8 -7 -7 -7 -6 -5 -5 -5 -5 -4 -4 ------- Run | Yrd Mat Mat Min Mat Fac Was Fac Fac Fac Upp Upp War Pro Fac Maximum Alert Level 3 | . . . . . . . 3 2 1 . . . . . Low Security (%) 77 | 100 100 100 100 100 100 100 59 . 66 . . . . 100 Level 1 8 | . . . . . . . 4 45 33 . . . . . Level 2 10 | . . . . . . . 19 54 . . . . . . Level 3 3 | . . . . . . . 15 . . . . . . . Level 4 . | . . . . . . . . . . . . . . . Level 5 . | . . . . . . . . . . . . . . . High Security . | . . . . . . . . . . . . . . . Max Security . | . . . . . . . . . . . . . . . Peak Influence 765 | 10 85 31 65 60 46 8 765 533 245 . . . . 121 Initial 372 | . . 26 5 21 4 . . 372 245 . . . . . Average 122 | 1 46 5 3 15 5 . 258 402 175 . . . . 26 Influence Increases 3587 | 45 232 75 85 133 66 8 1278 457 78 353 279 80 15 403 Destroy 0b10 Robot/C 1740 | . 160 40 60 60 40 . 340 180 40 300 220 60 . 240 Destroy 0b10 Robot/NC 135 | 45 5 10 . . . . 45 10 10 . . 5 . 5 Destroy Leader 402 | . 32 24 10 20 10 . 130 52 24 20 20 . . 60 Allied During Kill 543 | . . . . . . . 483 18 . 18 24 . . . Successful Hack 28 | . 19 . . . . . 9 . . . . . . . Disable Machine 270 | . . . 15 15 . . 150 90 . . . . . . Destroy Structure 244 | . 1 1 . 8 1 8 121 62 4 . . . . 38 Partial Spotted 15 | . . . . . . . . . . . . . . 15 Lose Combat Pursuer 210 | . 15 . . 30 15 . . 45 . 15 15 15 15 45 Influence Decreases 3560 | 45 170 123 44 176 78 8 517 717 478 247 402 164 15 376 Entered New Map 894 | . . 36 9 34 8 . . 389 256 38 40 84 . . Time Decay 2207 | 45 150 87 25 142 70 8 428 278 222 189 302 30 15 216 Lost Part 310 | . 20 . 10 . . . . 30 . 20 20 50 . 160 Lost Ally 149 | . . . . . . . 89 20 . . 40 . . . Squads Dispatched 20 | . 2 1 . . 1 . 10 5 . . . . . 1 Investigation 4 | . 1 . . . . . 2 1 . . . . . . Extermination 4 | . . . . . . . 1 2 . . . . . 1 Reinforcement 9 | . 1 1 . . 1 . 4 2 . . . . . . Assault . | . . . . . . . . . . . . . . . Garrison 3 | . . . . . . . 3 . . . . . . . Intercept . | . . . . . . . . . . . . . . . Searches Triggered . | . . . . . . . . . . . . . . . Construction Impeded 1 | . . . . . . . . 1 . . . . . . Haulers Reinforced 3 | . . . . . 1 . 1 1 . . . . . . Active Scanning Responses . | . . . . . . . . . . . . . . . Cargo Convoy Interrupts . | . . . . . . . . . . . . . . . Stealth | -11 -10 -9 -9 -8 -7 -7 -7 -6 -5 -5 -5 -5 -4 -4 --------- Run | Yrd Mat Mat Min Mat Fac Was Fac Fac Fac Upp Upp War Pro Fac Distress Signals 5 | . . 1 . . . . 1 1 . . . 1 . 1 Communications Jammed 2 | . . . . . . . 1 1 . . . . . . Distress Signals 2 | . . . . . . . 1 1 . . . . . . Times Spotted 154 | . 11 4 4 5 4 1 14 8 4 15 11 48 3 22 Peak Tracking Total 19 | . 4 2 4 3 2 1 2 3 1 8 6 19 3 6 Tactical Retreats 9 | . 1 . . 1 1 . . 1 . 1 1 1 1 1 Traps | -11 -10 -9 -9 -8 -7 -7 -7 -6 -5 -5 -5 -5 -4 -4 ------- Run | Yrd Mat Mat Min Mat Fac Was Fac Fac Fac Upp Upp War Pro Fac Traps Triggered 6 | . 1 . . . 1 . 1 . 2 . . 1 . . Indirectly . | . . . . . . . . . . . . . . . Trap Hack Attempts . | . . . . . . . . . . . . . . . Triggered . | . . . . . . . . . . . . . . . Disarmed . | . . . . . . . . . . . . . . . Reprogrammed . | . . . . . . . . . . . . . . . Reused . | . . . . . . . . . . . . . . . Traps Extracted . | . . . . . . . . . . . . . . . Installed . | . . . . . . . . . . . . . . . Triggered . | . . . . . . . . . . . . . . . Machines | -11 -10 -9 -9 -8 -7 -7 -7 -6 -5 -5 -5 -5 -4 -4 ---------- Run | Yrd Mat Mat Min Mat Fac Was Fac Fac Fac Upp Upp War Pro Fac Machines Disabled 19 | . . . 1 1 . . 10 6 . . . 1 . . Max in Single Turn 1 | . . . 1 1 . . . 1 . . . 1 . . Garrison Access 1 | . . . . . 1 . . . . . . . . . Machines Repaired . | . . . . . . . . . . . . . . . Machines Dismantled 1 | . . . . . . . . . . . . 1 . . Machines Sabotaged . | . . . . . . . . . . . . . . . Overloaded Fab Kills . | . . . . . . . . . . . . . . . Hacking | -11 -10 -9 -9 -8 -7 -7 -7 -6 -5 -5 -5 -5 -4 -4 --------- Run | Yrd Mat Mat Min Mat Fac Was Fac Fac Fac Upp Upp War Pro Fac Machines Accessed 11 | . 2 1 . . 1 . 3 . 1 . 1 1 . 1 Terminals 5 | . 2 1 . . . . 1 . . . 1 . . . Fabricators 1 | . . . . . . . . . 1 . . . . . Repair Stations 2 | . . . . . . . 1 . . . . . . 1 Recycling Units . | . . . . . . . . . . . . . . . Scanalyzers . | . . . . . . . . . . . . . . . Garrison Access 2 | . . . . . 1 . 1 . . . . . . . Total Hacks 27 | . 7 2 . . 1 . 9 . 2 . 4 1 . 1 Successful 14 | . 3 1 . . 1 . 4 . . . 4 1 . . Failed 13 | . 4 1 . . . . 5 . 2 . . . . 1 Catastrophic 3 | . 1 . . . . . 1 . . . . . . 1 Database Lockouts . | . . . . . . . . . . . . . . . Manual 7 | . 6 . . . . . 1 . . . . . . . Terminals 18 | . 7 2 . . . . 5 . . . 4 . . . Fabricators 2 | . . . . . . . . . 2 . . . . . Repair Stations 3 | . . . . . . . 2 . . . . . . 1 Recycling Units . | . . . . . . . . . . . . . . . Scanalyzers . | . . . . . . . . . . . . . . . Garrison Access 3 | . . . . . 1 . 2 . . . . . . . Terminal Hacks 12 | . 3 1 . . . . 3 . . . 4 1 . . Record 4 | . . . . . . . . . . . 4 . . . Part Schematic 1 | . 1 . . . . . . . . . . . . . Robot Schematic 2 | . 1 . . . . . 1 . . . . . . . Robot Analysis 1 | . . . . . . . 1 . . . . . . . Prototype ID Bank 1 | . . . . . . . 1 . . . . . . . Open Door 1 | . . . . . . . . . . . . 1 . . Zone Layout 2 | . 1 1 . . . . . . . . . . . . Fabricator Hacks . | . . . . . . . . . . . . . . . Repair Station Hacks 1 | . . . . . . . 1 . . . . . . . Scan Component 1 | . . . . . . . 1 . . . . . . . Recycling Unit Hacks . | . . . . . . . . . . . . . . . Scanalyzer . | . . . . . . . . . . . . . . . Garrison Access Hacks 1 | . . . . . 1 . . . . . . . . . Seal Access 1 | . . . . . 1 . . . . . . . . . Unauthorized Hacks . | . . . . . . . . . . . . . . . Terminals . | . . . . . . . . . . . . . . . Fabricators . | . . . . . . . . . . . . . . . Repair Stations . | . . . . . . . . . . . . . . . Recycling Units . | . . . . . . . . . . . . . . . Scanalyzers . | . . . . . . . . . . . . . . . Garrison Access . | . . . . . . . . . . . . . . . Data Cores Recovered 1 | . . . . . . . 1 . . . . . . . Used . | . . . . . . . . . . . . . . . Hacking Detections 9 | . 2 1 . . . . 3 . 1 . 1 . . 1 Full Trace Events 1 | . . . . . . . 1 . . . . . . . Feedback Events . | . . . . . . . . . . . . . . . Feedback Blocked . | . . . . . . . . . . . . . . . Robot Schematics Acquired 2 | . 1 . . . . . 1 . . . . . . . Robots Built . | . . . . . . . . . . . . . . . Authchips . | . . . . . . . . . . . . . . . Time . | . . . . . . . . . . . . . . . Total Robot Build Rating . | . . . . . . . . . . . . . . . Part Schematics Acquired 1 | . 1 . . . . . . . . . . . . . Parts Built . | . . . . . . . . . . . . . . . Authchips . | . . . . . . . . . . . . . . . Time . | . . . . . . . . . . . . . . . Total Part Build Rating . | . . . . . . . . . . . . . . . Part Studies Acquired . | . . . . . . . . . . . . . . . Parts Repaired . | . . . . . . . . . . . . . . . Time . | . . . . . . . . . . . . . . . Parts Recycled . | . . . . . . . . . . . . . . . Recycled Matter . | . . . . . . . . . . . . . . . Retrieved Matter . | . . . . . . . . . . . . . . . Retrieved Components . | . . . . . . . . . . . . . . . Parts Scanalyzed . | . . . . . . . . . . . . . . . Part Schematics Acquired . | . . . . . . . . . . . . . . . Parts Damaged . | . . . . . . . . . . . . . . . Bothacking | -11 -10 -9 -9 -8 -7 -7 -7 -6 -5 -5 -5 -5 -4 -4 ------------ Run | Yrd Mat Mat Min Mat Fac Was Fac Fac Fac Upp Upp War Pro Fac Used RIF Installer . | . . . . . . . . . . . . . . . Robots Hacked . | . . . . . . . . . . . . . . . Non-combat . | . . . . . . . . . . . . . . . Combat . | . . . . . . . . . . . . . . . Robot Hacks Applied . | . . . . . . . . . . . . . . . Relay Couplers Released . | . . . . . . . . . . . . . . . Fabnet Peak Effective % . | . . . . . . . . . . . . . . . Robots Rewired 2 | . . . . . . . . . . 2 . . . . Allies Hacked . | . . . . . . . . . . . . . . . Hacks Repelled . | . . . . . . . . . . . . . . . Allies | -11 -10 -9 -9 -8 -7 -7 -7 -6 -5 -5 -5 -5 -4 -4 -------- Run | Yrd Mat Mat Min Mat Fac Was Fac Fac Fac Upp Upp War Pro Fac Total Allies 22 | . . . . . . 20 . . . 2 . . . . Largest Group 20 | . . . . . . 20 20 5 . 2 2 . . . Highest-Rated Group 536 | . . . . . . 536 536 153 . 79 79 . . . Highest-Rated Ally 49 | . . . . . . 35 35 35 . 49 49 . . . Total Orders . | . . . . . . . . . . . . . . . Ally Attacks 174 | . . . . . . 10 143 14 . 2 5 . . . Total Damage 4200 | . . . . . . 302 3412 211 . 93 182 . . . Kills 34 | . . . . . . 1 26 2 . 2 3 . . . Allies Corrupted . | . . . . . . . . . . . . . . . Allies Melted 1 | . . . . . . . 1 . . . . . . . Intel | -11 -10 -9 -9 -8 -7 -7 -7 -6 -5 -5 -5 -5 -4 -4 ------- Run | Yrd Mat Mat Min Mat Fac Was Fac Fac Fac Upp Upp War Pro Fac Active Infowar (turns) 6221 | 107 341 445 391 453 625 142 1249 618 466 322 . 266 195 601 Optics 1062 | . . . . . . . . . . . . 266 195 601 Terrain 58 | . . . . . . . . . . . . 58 . . Seismic 4789 | 107 341 445 391 453 625 142 1249 618 418 . . . . . Jamming 2755 | . . . . . 572 142 981 273 465 322 . . . . Robot Analysis Total 1 | . . . . . . . 1 . . . . . . . Derelict Logs Recovered 3 | . . . 1 . . . . . . 1 1 . . . Drone Launches . | . . . . . . . . . . . . . . . Drone Recoveries . | . . . . . . . . . . . . . . . Exploration | -11 -10 -9 -9 -8 -7 -7 -7 -6 -5 -5 -5 -5 -4 -4 ------------- Run | Yrd Mat Mat Min Mat Fac Was Fac Fac Fac Upp Upp War Pro Fac Turns Passed 8429 | 346 341 445 391 453 625 142 1249 618 466 436 679 1397 195 646 Spaces Moved 4931 | 164 131 177 234 195 362 81 713 292 273 212 387 752 315 643 Core 505 | 15 . . . . . . . . . . . 16 315 159 Treads 3835 | 131 131 177 234 195 362 81 713 292 273 212 387 647 . . Legs 20 | 18 . . . . . . . . . . . . . 2 Wheels 127 | . . . . . . . . . . . . 89 . 38 Hover 254 | . . . . . . . . . . . . . . 254 Flight 190 | . . . . . . . . . . . . . . 190 Fastest Speed 27 | 50 160 160 160 160 160 160 160 155 156 156 158 50 50 27 Average Speed 141 | 145 160 204 160 205 160 160 160 159 156 156 158 163 50 49 Slowest Speed 950 | 160 160 240 160 240 160 160 160 160 156 158 158 950 50 150 Overloaded Moves . | . . . . . . . . . . . . . . . Propulsion Burnouts . | . . . . . . . . . . . . . . . Robots Hopped 1 | . . . . . . . . . . . . . . 1 Potential Cave-ins 7 | . . . . . . . . . . . . . . 7 Cave-ins Triggered 2 | . . . . . . . . . . . . 2 . . Exploration Rate (%) 33 | 10 18 15 60 22 11 70 22 8 10 39 56 85 53 19 Regions Visited 14 Branch Regions 5 Pre-discovered Areas . | . . . . . . . . . . . . . . . Known Exits Taken 2 | . . . . . . . . . . . 1 . 1 . Unknown Exits Taken 10 | 1 1 1 1 1 . . 1 1 1 1 . 1 . . Scrap Searched 5 | . . . . . . . . . . 2 2 . 1 . Spaces Dug 34 | . . . . 7 . . 13 . . . . . . 14 Terrain Destroyed 81 | . . . . 7 . . 13 1 1 10 9 13 . 27 Melee 4 | . . . . . . . . . . . . . . 4 Projectile 53 | . . . . . . . . 1 1 6 9 13 . 23 AOE 24 | . . . . 7 . . 13 . . 4 . . . . Terrain Rammed . | . . . . . . . . . . . . . . . Walls Destroyed . | . . . . . . . . . . . . . . . Machines Disabled . | . . . . . . . . . . . . . . . Actions | -11 -10 -9 -9 -8 -7 -7 -7 -6 -5 -5 -5 -5 -4 -4 --------- Run | Yrd Mat Mat Min Mat Fac Was Fac Fac Fac Upp Upp War Pro Fac Total 5839 | 210 190 251 242 223 398 91 783 401 295 274 420 843 351 867 Wait 348 | . 16 47 3 13 12 6 33 54 6 4 12 6 37 99 Move 4916 | 163 130 176 233 194 362 80 712 291 272 211 386 751 314 641 Hop 1 | . . . . . . . . . . . . . . 1 Pick Up 53 | 6 1 8 1 . 7 . 2 11 3 . 1 7 . 6 Fast Attach 58 | 9 1 7 . 1 2 2 . 1 1 . . 15 . 19 Attach 31 | . . . 1 . 2 . 1 5 2 3 3 7 . 7 Detach 6 | . . . . . . . . . . . . 4 . 2 Swap 36 | 1 . 2 . 4 1 . 8 7 2 3 1 7 . . Drop 60 | 2 . 7 . . 6 2 6 10 1 . 1 12 . 13 Fire 240 | 29 39 4 4 11 6 1 17 21 8 19 16 25 . 40 Melee 39 | . . . . . . . . . . . . . . 39 Ram . | . . . . . . . . . . . . . . . Kick . | . . . . . . . . . . . . . . . Crush 10 | . 3 . . . . . 4 1 . 1 . 1 . . Escape Stasis . | . . . . . . . . . . . . . . . Rewire 33 | . . . . . . . . . . 33 . . . . Trap . | . . . . . . . . . . . . . . . Miscellaneous 8 | . . . . . . . . . . . . 8 . . Route ------- -11/Scrapyard -10/Materials -9/Materials -9/Mines (discovered 2 exits: [*Mat] / [*Zio]) -8/Materials -7/Factory -7/Waste -7/Factory -6/Factory -5/Factory -5/Upper Caves -5/Upper Caves (discovered 2 exits: Fac / *War) -5/Warlord -4/Proximity Caves -4/Factory (discovered 1 exit: *Upp) History --------- Turn | Location | Event 5 | -11/Scrapyard | Discovered new exit (range 13) 347 | -11/Scrapyard | Entered Materials 348 | -10/Materials | Build established: Mutant 473 | -10/Materials | Discovered new exit (range 15) 688 | -10/Materials | Entered another Materials area 688 | -9/Materials | Evolved 2 slots: Utility x1, Weapon x1 1008 | -9/Materials | Build established: Gunner 1082 | -9/Materials | Discovered new exit (range 14) 1133 | -9/Materials | Entered Mines 1206 | -9/Mines | YI-UF0 nonchalantly dropped a Grenade Launcher on the ground 1260 | -9/Mines | A Derelict revealed a hidden shortcut to a safe place 1386 | -9/Mines | Learned 4 Materials zone layouts 1488 | -9/Mines | Discovered new exit (range 12) 1524 | -9/Mines | Entered Materials 1524 | -8/Materials | Evolved 2 slots: Utility x2 1939 | -8/Materials | Discovered new exit (range 16) 1977 | -8/Materials | Entered Factory 1977 | -7/Factory | Evolved 2 slots: Propulsion x1, Utility x1 1998 | -7/Factory | Build established: Scavenger-Tank 2602 | -7/Factory | Sucked down chute 2602 | -7/Factory | Entered Waste 2603 | -7/Waste | Joined by Warlord forces that had cleared the area 2672 | -7/Waste | A Compactor rumbled back to life 2673 | -7/Waste | Spotted C-40 Crusher 2674 | -7/Waste | Allies destroyed C-40 Crusher 2694 | -7/Waste | Discovered new exit (range 16) 2744 | -7/Waste | Entered Factory 2744 | -7/Factory | Accompanied by 20 allies 3019 | -7/Factory | Build established: Tank 3437 | -7/Factory | Lost 3 allies 3558 | -7/Factory | Allied Derelicts emerged from ambush trap array 3810 | -7/Factory | Lost 4 allies 3958 | -7/Factory | Discovered new exit (range 7) 3993 | -7/Factory | Entered another Factory area 3993 | -6/Factory | Accompanied by 5 allies 3993 | -6/Factory | Evolved 2 slots: Propulsion x1, Utility x1 4126 | -6/Factory | Build established: Scavenger-Tank 4270 | -6/Factory | Lost 3 allies 4379 | -6/Factory | P-60 Hacker assimilated allied MT-U6R(d) 4458 | -6/Factory | Lost 3 parts (1n2u) 4585 | -6/Factory | Discovered new exit (range 7) 4611 | -6/Factory | Entered another Factory area 4611 | -5/Factory | Evolved 2 slots: Power x1, Propulsion x1 5066 | -5/Factory | Discovered new exit (range 8) 5077 | -5/Factory | Entered Upper Caves 5245 | -5/Upper Caves | Learned Factory trap positions 5335 | -5/Upper Caves | Build established: Gunner 5336 | -5/Upper Caves | Attracted the attention of an 0b10 outpost 5403 | -5/Upper Caves | Destroyed 9 combat bots 5481 | -5/Upper Caves | Discovered new exit (range 15) 5513 | -5/Upper Caves | Entered another Upper Caves area 5513 | -5/Upper Caves | Accompanied by 2 allies 5528 | -5/Upper Caves | Learned 4 Factory zone layouts 5682 | -5/Upper Caves | Attracted the attention of an 0b10 base 5757 | -5/Upper Caves | Learned Armory stockpile data 5757 | -5/Upper Caves | Learned Armory trap positions 5757 | -5/Upper Caves | Learned location of 1 exit from Factory 5757 | -5/Upper Caves | Identified exit to Warlord 5757 | -5/Upper Caves | Identified exit to Factory 6192 | -5/Upper Caves | Entered Warlord 6248 | -5/Warlord | System corruption cleaned by Quarantine Array 6371 | -5/Warlord | Found Prototype Reactor 6379 | -5/Warlord | Found Prototype Device 6379 | -5/Warlord | Identified Exp. Phase Shifter 6397 | -5/Warlord | Found Prototype Processor 6397 | -5/Warlord | Identified Exp. Armor Integrity Analyzer 6400 | -5/Warlord | Identified Vortex Chain Reactor 6541 | -5/Warlord | Visited the Vortex Lab 6554 | -5/Warlord | Warlord's base attacked by MAIN.C 6815 | -5/Warlord | Met Warlord 6904 | -5/Warlord | Warlord forces counterattacked 7171 | -5/Warlord | Spotted Executioner 7229 | -5/Warlord | Warlord base infiltrated, sounded retreat 7310 | -5/Warlord | Lost 6 parts (1p3n1u1w) 7310 | -5/Warlord | Found Prototype Processor 7310 | -5/Warlord | Identified Exp. Targeting Computer 7314 | -5/Warlord | Found Prototype Processor 7331 | -5/Warlord | Spotted Executioner 7388 | -5/Warlord | Crushed by falling debris 7390 | -5/Warlord | Found Prototype Device 7390 | -5/Warlord | Identified Adv. Kinecellerator 7399 | -5/Warlord | Found Prototype Processor 7399 | -5/Warlord | Identified Exp. Core Analyzer (x2) 7409 | -5/Warlord | Spotted Striker 7416 | -5/Warlord | Core integrity fell below 50% 7419 | -5/Warlord | Lost 4 parts (1p3u) 7457 | -5/Warlord | Lost 4 allies 7475 | -5/Warlord | Spotted Executioner 7516 | -5/Warlord | Spotted Striker 7525 | -5/Warlord | Lost 3 parts (1p1n1u) 7525 | -5/Warlord | Spotted Executioner 7541 | -5/Warlord | Spotted Executioner 7554 | -5/Warlord | Spotted Executioner 7554 | -5/Warlord | Spotted Executioner 7554 | -5/Warlord | Spotted Executioner 7560 | -5/Warlord | Crushed by falling debris 7560 | -5/Warlord | System corruption reached 10% 7583 | -5/Warlord | Discovered new exit (range 12) 7588 | -5/Warlord | Core integrity fell below 20% 7589 | -5/Warlord | Entered Proximity Caves 7598 | -4/Proximity Caves | Spotted B-86 Titan 7615 | -4/Proximity Caves | Lost 7 allies 7618 | -4/Proximity Caves | Lost 7 parts (1p1n2u3w) 7774 | -4/Proximity Caves | Discovered exit to Factory (range 20) 7784 | -4/Proximity Caves | Entered Factory 7784 | -4/Factory | Evolved 2 slots: Propulsion x2 7785 | -4/Factory | Identified exit to Upper Caves 7787 | -4/Factory | Loaded intel: 88 trap records 7877 | -4/Factory | Build established: Mutant 8052 | -4/Factory | Lost 4 parts (1n2u1w) 8376 | -4/Factory | Core integrity fell below 50% 8403 | -4/Factory | Core integrity fell below 20% 8420 | -4/Factory | System corruption reached 10% 8430 | -4/Factory | Destroyed by P-70 Sage with Tesla Rifle Last Messages --------------- 08393_ U-05 Engineer builds a Wall. 08394_ Penetrated by Slug. 08396_ R-10 Processor collects Mic. Fission Core. 08397_ U-05 Engineer lays Concrete. 08397_ U-05 Engineer builds a Wall. 08398_ U-05 Engineer lays Concrete. 08398_ Penetrated by Slug. 08400_ U-05 Engineer builds a Wall. 08400_ Slug penetrates Wall. 08402_ U-05 Engineer lays Concrete. 08402_ U-05 Engineer builds a Wall. 08404_ System corrupted: Matter fused (-10). 08409_ P-70 Sage Antigrav System severed. 08415_ Chainsword destroyed. 08417_ P-70 Sage knocked back. 08422_ System corrupted: IFF burst signal emitted. 08423_ P-70 Sage destroyed. 08424_ Door malfunctions. 08425_ System corrupted: Enh. Gauss Cannon jammed. 08426_ U-05 Engineer builds a Wall. Map ----- +----------------------------------------------------+ | ?????????????????????????????????????????????????? | | ?????????????????????????????????????????????????? | | ?????????????????????????????????????????????????? | | ?????????????????????????????????????????????????? | | ?????????????????????????????????????????????????? | | ?????????????????????????????????????????????????? | | ?????????????????????????????????????????????????? | | ?????????????????????????????????????????????????? | | ?????????????????????????????????????????????????? | | ?????????????????????????????????????????????????? | | ?????????????????????????????????????????????????? | | ??????????????????#########??????????????????????? | | ??????????????????# T ??????????????????????? | | ??????????????????# ^ "??????????????????????? | | ??????????????????# ""?????????????????????? | | ??????????????????# """????????????????????? | | ??????????????????# """????????????????????? | | ??????????????????# ^??#?????????????????? | | ??????????????????# ^ """" #?????????????????? | | ????^?????????????#[ """" #?????????????????? | | ??????????????????# """" #?????????????????? | | ??????????????????# """" #?????????????????? | | ??????????????????# ^ % #???????########### | | ??????????????????# !*%!p #???????# ## | | ??????????????????#######/;############# ## | | ?^??^?^????????????### =u@ ;; "" | | ?????????????? w R m R #" "# | | ?????????? w #" "" | | ??????????? Y + # | | ??????????? ## " | | ???????????? # = | | ???????????? # | | ???????????? ########### # = | | ??????^?????? ?????????## [! | | ????????????? ??????????# "!%%= "= | | ?????????????? ???????????# ""%!""##### | | ??^??????????? ???????????# H%= =% | | ???????????????? ????????????# | | ?????????????????????????????# > | | ?????????????????????????????# | | ?????????????????????????????# | | ?????????????????????????????# ########### | | ?????????????????????????????# ??????# | | ?????????????????????????????#####+####??????# | | ????????????????????????????????? ^??????????# | | ???????????????????????????????? ???????????# | | ??????????????????????????????? ????????????# %/ | | ?????????????????????????????? ?????????????# [/ | | ????????????????????????????? ??????????????# [ | | ????????????????????????????""???????????????# | +----------------------------------------------------+ Best States ------------- Heat Dissipation 85 Energy Generation 55 Energy Capacity 700 Matter Stores 300 Matter Capacity 300 Sight Range 23 Terrain Scan Range 16 Terrain Scan Density 210 Jamming Range 12 Armor Coverage 300 Phase Shifting 20 Evasion (%) 64 Targeting Accuracy 20 Melee Accuracy 8 Core Analysis 12 Armor Integrity Analysis 50 Recoil Reduction 5 Offensive Hacking 14 Item Schematics ----------------- Hcp. Storage Unit | -10/Materials | Hacked Robot Schematics ------------------ M-13 Machinist | -10/Materials | Hacked B-48 Gladiator | -7/Factory | Hacked Fabricated ------------ Nothing Repaired ---------- Nothing Studied --------- None Alien Tech Used ----------------- None Achievements -------------- None Challenges ------------ None Game ------ Seed ActivePlatingScythe Manual? 0 Play Time 00:56:25 Cumulative 256.7 hours Start 2025.10.31 @ 16:50:00 End 2025.10.31 @ 17:47:49 Sessions 1 Manual Loads 0 Difficulty Rogue Special Mode None Game No. 574 Rogue 574 Adventurer 0 Explorer 0 Win Type - Total 18 Types 13/0/3/1/1/0/0/0/0/0 Lore% 79 Gallery% 70 Achievement% 47 Wizard Run 0 Options --------- Layout 0 ASCII 0 Keyboard 0 Movement Numpad Keybinds 0 Fullscreen 2 Font 18/Terminus Map View 76x50 Zoom Use 0% Tactical HUD 1 Map Filters NONE Filters SATURATION(100) Steam 1 RUN: bb6bd557-25bf-41b6-873f-afff48124d7d